[Event "Chinese League Div-A Rapid 2022"]
[Site "Fuling,Chongqing"]
[Date "2022.09.15"]
[Round "8.16"]
[White "Bai, Jinshi"]
[Black "Xu, Jun"]
[Result "1-0"]
[ECO "A60"]
[WhiteElo "2586"]
[BlackElo "2474"]
[Annotator "ChessBase"]
[PlyCount "145"]
[EventDate "2022.09.07"]
[EventType "team-tourn"]
[EventCountry "CHN"]
[SourceTitle "playchess.com"]
[Source "ChessBase"]
[SourceQuality "1"]
[TimeControl "1500+10"]

1. d4 {[%emt 0:00:03]} Nf6 {[%emt 0:00:01]} 2. c4 {[%emt 0:00:05]} e6 {[%emt 0:00:01]} 3. g3 {[%emt 0:00:01]} c5 {[%emt 0:00:01]} 4. d5 {[%emt 0:00:04]} exd5 {[%emt 0:00:01]} 5. cxd5 {[%emt 0:00:02]} b5 {[%emt 0:00:01]} 6. Nf3 {[%emt 0:00:03]} g6 {[%emt 0:01:20]} 7. e4 {[%emt 0:00:38]} Nxe4 {[%emt 0:00:00]} 8. Bxb5 {[%emt 0:01:28]} Bg7 {[%emt 0:00:00]} 9. O-O {[%emt 0:00:17]} O-O {[%emt 0:00:00]} 10. Re1 {[%emt 0:00:12]} Re8 {[%emt 0:00:25]} 11. Bd3 {[%emt 0:02:17]} Nf6 {[%emt 0:02:46]} 12. Rxe8+ {[%emt 0:00:10]} Qxe8 {[%emt 0:00:01]} 13. Nc3 {[%emt 0:00:17]} d6 {[%emt 0:00:22]} 14. Bf4 {[%emt 0:00:51]} Qd8 {[%emt 0:00:54]} 15. Qd2 {[%emt 0:01:20]} Na6 {[%emt 0:00:28]} 16. Nb5 {[%emt 0:03:54]} Nc7 {[%emt 0:02:10]} 17. Nxd6 {[%emt 0:00:43]} Nfxd5 {[%emt 0:00:08]} 18. Nxf7 {[%emt 0:02:09]} Qf6 {[%emt 0:03:37]} 19. Bxc7 {[%emt 0:00:05]} Nxc7 {[%emt 0:00:40]} 20. N7g5 {[%emt 0:01:31]} h6 {[%emt 0:01:43]} 21. Bc4+ {[%emt 0:03:32]} Kh8 {[%emt 0:01:35]} 22. Nf7+ {[%emt 0:01:30]} Kh7 {[%emt 0:00:04]} 23. N3e5 {[%emt 0:00:14]} Bf5 {[%emt 0:00:49]} 24. Re1 {[%emt 0:00:23]} Re8 {[%emt 0:00:35]} 25. g4 {[%emt 0:00:52]} Be6 {[%emt 0:00:21]} 26. g5 {[%emt 0:00:02]} Qe7 {[%emt 0:01:10]} 27. gxh6 {[%emt 0:02:26]} Bf6 {[%emt 0:01:44]} 28. Bxe6 {[%emt 0:01:56]} Nxe6 {[%emt 0:00:23]} 29. Nd6 {[%emt 0:00:30]} Rd8 {[%emt 0:00:51]} 30. Nec4 {[%emt 0:00:04]} Qd7 {[%emt 0:00:36]} 31. Ne4 {[%emt 0:01:25]} Bd4 {[%emt 0:02:19]} 32. Nf6+ {[%emt 0:00:03]} Bxf6 {[%emt 0:00:02]} 33. Qxd7+ {[%emt 0:00:01]} Rxd7 {[%emt 0:00:01]} 34. Rxe6 {[%emt 0:00:02]} Bd4 {[%emt 0:00:08]} 35. Kg2 {[%emt 0:00:00]} Kxh6 {[%emt 0:00:04]} 36. Kg3 {[%emt 0:00:12]} Kg5 {[%emt 0:00:46]} 37. f3 {[%emt 0:01:09]} Kf5 {[%emt 0:00:06]} 38. Re4 {[%emt 0:00:32]} g5 {[%emt 0:00:05]} 39. b3 {[%emt 0:00:02]} Kf6 {[%emt 0:01:15]} 40. Re8 {[%emt 0:00:02]} Kf5 {[%emt 0:01:28]} 41. Re4 {[%emt 0:00:02]} Kf6 {[%emt 0:00:05]} 42. Kg4 {[%emt 0:00:03]} Rh7 {[%emt 0:00:08]} 43. Kg3 {[%emt 0:00:12]} Rd7 {[%emt 0:00:06]} 44. h3 {[%emt 0:00:02]} Rd8 {[%emt 0:00:11]} 45. Re2 {[%emt 0:00:30]} Rh8 {[%emt 0:00:38]} 46. Re4 {[%emt 0:00:02]} Rd8 {[%emt 0:00:02]} 47. Na5 {[%emt 0:00:12]} Rd6 {[%emt 0:00:51]} 48. Kg4 {[%emt 0:00:06]} Ra6 {[%emt 0:00:13]} 49. b4 {[%emt 0:00:49]} Bc3 {[%emt 0:00:29]} 50. a3 {[%emt 0:00:10]} cxb4 {[%emt 0:00:03]} 51. axb4 {[%emt 0:00:01]} Bxb4 {[%emt 0:00:09]} 52. Nc4 {[%emt 0:00:06]} Re6 {[%emt 0:00:33]} 53. Rd4 {[%emt 0:00:07]} a5 {[%emt 0:00:09]} 54. Rd5 {[%emt 0:00:09]} a4 {[%emt 0:00:07]} 55. Rf5+ {[%emt 0:00:06]} Ke7 {[%emt 0:00:09]} 56. Rb5 {[%emt 0:00:01]} Bc3 {[%emt 0:00:44]} 57. Rb7+ {[%emt 0:00:10]} Kf6 {[%emt 0:00:02]} 58. Ra7 {[%emt 0:00:02]} Re1 {[%emt 0:00:12]} 59. Ra6+ {[%emt 0:00:05]} Kg7 {[%emt 0:00:11]} 60. Kxg5 {[%emt 0:00:51]} Rg1+ {[%emt 0:00:09]} 61. Kf4 {[%emt 0:00:04]} Ra1 {[%emt 0:00:07]} 62. Kf5 {[%emt 0:00:02]} Bb4 {[%emt 0:00:14]} 63. Ra7+ {[%emt 0:00:02]} Kf8 {[%emt 0:00:16]} 64. Kf6 {[%emt 0:00:20]} Ke8 {[%emt 0:00:06]} 65. f4 {[%emt 0:00:11]} a3 {[%emt 0:00:05]} 66. Kf5 {[%emt 0:00:21]} a2 {[%emt 0:00:06]} 67. Ne5 {[%emt 0:00:13]} Bc5 {[%emt 0:00:18]} 68. Ra8+ {[%emt 0:00:02]} Ke7 {[%emt 0:00:02]} 69. h4 {[%emt 0:00:04]} Kd6 {[%emt 0:00:29]} 70. h5 {[%emt 0:00:24]} Kc7 {[%emt 0:00:39]} 71. h6 {[%emt 0:00:07]} Rh1 {[%emt 0:00:08]} 72. Rxa2 {[%emt 0:00:04]} Rxh6 {[%emt 0:00:02]} 73. Rc2 {[%emt 0:00:01]} 1-0

[Event "Chinese League Div-A Rapid 2022"]
[Site "Fuling,Chongqing"]
[Date "2022.09.15"]
[Round "8.17"]
[White "Xu, Zhihang"]
[Black "Chen, Qi b"]
[Result "1/2-1/2"]
[ECO "D45"]
[WhiteElo "2489"]
[BlackElo "2485"]
[Annotator "ChessBase"]
[PlyCount "37"]
[EventDate "2022.09.07"]
[EventType "team-tourn"]
[EventCountry "CHN"]
[SourceTitle "playchess.com"]
[Source "ChessBase"]
[SourceQuality "1"]
[TimeControl "1500+10"]

1. d4 {[%emt 0:00:00]} Nf6 {[%emt 0:00:00]} 2. c4 {[%emt 0:00:00]} e6 {[%emt 0:00:00]} 3. Nf3 {[%emt 0:00:00]} d5 {[%emt 0:00:00]} 4. Nc3 {[%emt 0:00:00]} c6 {[%emt 0:00:00]} 5. e3 {[%emt 0:00:00]} Nbd7 {[%emt 0:00:00]} 6. Qc2 {[%emt 0:00:00]} Bd6 {[%emt 0:00:00]} 7. Be2 {[%emt 0:00:00]} O-O {[%emt 0:00:00]} 8. O-O {[%emt 0:00:00]} b6 {[%emt 0:00:00]} 9. b3 {[%emt 0:00:00]} Bb7 {[%emt 0:00:00]} 10. Bb2 {[%emt 0:00:00]} Qe7 {[%emt 0:00:00]} 11. e4 {[%emt 0:00:00]} dxe4 {[%emt 0:00:00]} 12. Nxe4 {[%emt 0:00:00]} Nxe4 {[%emt 0:00:00]} 13. Qxe4 {[%emt 0:00:00]} Nf6 {[%emt 0:00:00]} 14. Qh4 {[%emt 0:00:00]} Ba3 {[%emt 0:00:00]} 15. Bc3 {[%emt 0:00:00]} Bb4 {[%emt 0:00:00]} 16. Bb2 {[%emt 0:00:00]} Ba3 {[%emt 0:00:00]} 17. Bc3 {[%emt 0:00:00]} Bb4 {[%emt 0:00:00]} 18. Bb2 {[%emt 0:00:00]} Ba3 {[%emt 0:00:00]} 19. Bc3 {[%emt 0:00:00]} 1/2-1/2

[Event "Chinese League Div-A Rapid 2022"]
[Site "Fuling,Chongqing"]
[Date "2022.09.15"]
[Round "8.18"]
[White "Ma, Qun"]
[Black "Lin, Chen"]
[Result "1-0"]
[ECO "E71"]
[WhiteElo "2666"]
[BlackElo "2485"]
[Annotator "ChessBase"]
[PlyCount "77"]
[EventDate "2022.09.07"]
[EventType "team-tourn"]
[EventCountry "CHN"]
[SourceTitle "playchess.com"]
[Source "ChessBase"]
[SourceQuality "1"]
[TimeControl "1500+10"]

1. d4 {[%emt 0:00:04]} Nf6 {[%emt 0:00:02]} 2. c4 {[%emt 0:00:02]} g6 {[%emt 0:00:01]} 3. Nc3 {[%emt 0:00:03]} Bg7 {[%emt 0:00:02]} 4. e4 {[%emt 0:00:02]} O-O {[%emt 0:00:02]} 5. h3 {[%emt 0:00:02]} d6 {[%emt 0:00:05]} 6. Bg5 {[%emt 0:00:02]} h6 {[%emt 0:01:03]} 7. Be3 {[%emt 0:00:02]} c5 {[%emt 0:00:05]} 8. d5 {[%emt 0:00:10]} e6 {[%emt 0:00:09]} 9. Nf3 {[%emt 0:01:59]} exd5 {[%emt 0:00:04]} 10. cxd5 {[%emt 0:01:03]} a6 {[%emt 0:01:51]} 11. a4 {[%emt 0:00:04]} Re8 {[%emt 0:00:03]} 12. Nd2 {[%emt 0:00:01]} Nxe4 {[%emt 0:00:04]} 13. Ncxe4 {[%emt 0:00:50]} f5 {[%emt 0:00:03]} 14. Bd3 {[%emt 0:03:22]} fxe4 {[%emt 0:01:30]} 15. Bxe4 {[%emt 0:00:15]} Bf5 {[%emt 0:00:31]} 16. Bxf5 {[%emt 0:00:53]} gxf5 {[%emt 0:00:02]} 17. O-O {[%emt 0:00:28]} Nd7 {[%emt 0:00:03]} 18. Rb1 {[%emt 0:01:44]} Qf6 {[%emt 0:01:23]} 19. Nf3 {[%emt 0:00:38]} Ne5 {[%emt 0:01:44]} 20. b4 {[%emt 0:02:31]} Nxf3+ {[%emt 0:01:05]} 21. Qxf3 {[%emt 0:00:03]} c4 {[%emt 0:00:31]} 22. b5 {[%emt 0:00:01]} a5 {[%emt 0:00:38]} 23. Rbc1 {[%emt 0:00:17]} c3 {[%emt 0:04:23]} 24. Rfd1 {[%emt 0:05:47]} Re4 {[%emt 0:00:07]} 25. Rd3 {[%emt 0:00:04]} Rc8 {[%emt 0:01:16]} 26. Qd1 {[%emt 0:00:04]} Rec4 {[%emt 0:04:51]} 27. Qc2 {[%emt 0:01:42]} Rb4 {[%emt 0:01:05]} 28. Qd1 {[%emt 0:00:20]} Rcc4 {[%emt 0:00:39]} 29. Bb6 {[%emt 0:02:32]} Rxa4 {[%emt 0:01:09]} 30. Rdxc3 {[%emt 0:00:42]} Rxc3 {[%emt 0:01:48]} 31. Rxc3 {[%emt 0:00:01]} Qxc3 {[%emt 0:00:05]} 32. Qxa4 {[%emt 0:00:01]} Qe1+ {[%emt 0:00:12]} 33. Kh2 {[%emt 0:00:01]} Qe5+ {[%emt 0:00:03]} 34. g3 {[%emt 0:01:13]} Qxd5 {[%emt 0:00:02]} 35. Qxa5 {[%emt 0:00:04]} Kh7 {[%emt 0:00:03]} 36. Be3 {[%emt 0:00:30]} Qc4 {[%emt 0:01:18]} 37. Qb6 {[%emt 0:01:03]} Be5 {[%emt 0:00:42]} 38. Qxb7+ {[%emt 0:00:07]} Kg6 {[%emt 0:00:03]} 39. Qc6 {[%emt 0:00:21]} 1-0

[Event "Chinese League Div-A Rapid 2022"]
[Site "Fuling,Chongqing"]
[Date "2022.09.15"]
[Round "8.19"]
[White "Yuan, Ye"]
[Black "Hou, Yifan"]
[Result "0-1"]
[ECO "A40"]
[WhiteElo "2108"]
[BlackElo "2650"]
[Annotator "ChessBase"]
[PlyCount "106"]
[EventDate "2022.09.07"]
[EventType "team-tourn"]
[EventCountry "CHN"]
[SourceTitle "playchess.com"]
[Source "ChessBase"]
[SourceQuality "1"]
[TimeControl "1500+10"]

1. d4 {[%emt 0:00:03]} e6 {[%emt 0:00:01]} 2. c4 {[%emt 0:00:08]} b6 {[%emt 0:00:02]} 3. e4 {[%emt 0:00:05]} Bb7 {[%emt 0:00:01]} 4. Bd3 {[%emt 0:00:17]} Nc6 {[%emt 0:00:21]} 5. Nf3 {[%emt 0:01:35]} Nb4 {[%emt 0:00:04]} 6. O-O {[%emt 0:00:33]} Nxd3 {[%emt 0:00:17]} 7. Qxd3 {[%emt 0:00:02]} d6 {[%emt 0:00:01]} 8. Nc3 {[%emt 0:00:19]} Ne7 {[%emt 0:00:14]} 9. Bg5 {[%emt 0:00:16]} h6 {[%emt 0:00:08]} 10. Be3 {[%emt 0:00:36]} a6 {[%emt 0:05:46]} 11. b4 {[%emt 0:02:01]} Ng6 {[%emt 0:00:52]} 12. Rab1 {[%emt 0:02:12]} Be7 {[%emt 0:00:09]} 13. Nd2 {[%emt 0:01:41]} O-O {[%emt 0:00:11]} 14. f4 {[%emt 0:01:20]} f5 {[%emt 0:02:42]} 15. d5 {[%emt 0:02:05]} Bc8 {[%emt 0:02:31]} 16. exf5 {[%emt 0:02:03]} Rxf5 {[%emt 0:00:02]} 17. dxe6 {[%emt 0:00:45]} Bxe6 {[%emt 0:00:02]} 18. g4 {[%emt 0:00:57]} Rf6 {[%emt 0:00:01]} 19. Nd5 {[%emt 0:02:09]} Bxd5 {[%emt 0:01:38]} 20. Qxd5+ {[%emt 0:00:03]} Kh8 {[%emt 0:01:34]} 21. Ne4 {[%emt 0:00:39]} Rf8 {[%emt 0:00:13]} 22. Qh5 {[%emt 0:02:20]} Nh4 {[%emt 0:04:09]} 23. Bd4 {[%emt 0:00:35]} Kh7 {[%emt 0:00:12]} 24. Ng3 {[%emt 0:02:00]} Qd7 {[%emt 0:04:26]} 25. Rbe1 {[%emt 0:01:16]} Rae8 {[%emt 0:00:01]} 26. h3 {[%emt 0:01:18]} Bf6 {[%emt 0:01:05]} 27. Bxf6 {[%emt 0:00:16]} Rxe1 {[%emt 0:01:07]} 28. Bxh4 {[%emt 0:00:14]} Rxf1+ {[%emt 0:00:01]} 29. Nxf1 {[%emt 0:00:05]} Rxf4 {[%emt 0:00:01]} 30. Qd5 {[%emt 0:00:24]} b5 {[%emt 0:00:45]} 31. Ne3 {[%emt 0:00:43]} bxc4 {[%emt 0:00:50]} 32. Bg3 {[%emt 0:00:08]} c6 {[%emt 0:00:01]} 33. Qd1 {[%emt 0:00:24]} Re4 {[%emt 0:00:06]} 34. Nxc4 {[%emt 0:00:09]} d5 {[%emt 0:00:19]} 35. Ne5 {[%emt 0:00:34]} Qa7+ {[%emt 0:00:07]} 36. Bf2 {[%emt 0:00:16]} Qc7 {[%emt 0:00:23]} 37. Nd3 {[%emt 0:00:04]} Qf7 {[%emt 0:00:15]} 38. a3 {[%emt 0:00:20]} Qg6 {[%emt 0:00:17]} 39. Nc5 {[%emt 0:00:03]} Rc4 {[%emt 0:00:05]} 40. Qd2 {[%emt 0:00:27]} h5 {[%emt 0:00:11]} 41. g5 {[%emt 0:00:04]} Qf5 {[%emt 0:00:15]} 42. Qe3 {[%emt 0:00:17]} Rf4 {[%emt 0:00:07]} 43. g6+ {[%emt 0:00:20]} Qxg6+ {[%emt 0:00:02]} 44. Kh2 {[%emt 0:00:04]} Qf5 {[%emt 0:00:11]} 45. Bg3 {[%emt 0:00:09]} Rf3 {[%emt 0:00:01]} 46. Qe2 {[%emt 0:00:16]} h4 {[%emt 0:00:04]} 47. Bc7 {[%emt 0:00:12]} Qxh3+ {[%emt 0:00:22]} 48. Kg1 {[%emt 0:00:01]} Qg4+ {[%emt 0:00:07]} 49. Qg2 {[%emt 0:00:05]} Qd4+ {[%emt 0:00:20]} 50. Kh1 {[%emt 0:00:03]} Rf2 {[%emt 0:00:08]} 51. Qg1 {[%emt 0:00:08]} Qe3 {[%emt 0:00:22]} 52. Qb1+ {[%emt 0:00:16]} Kh8 {[%emt 0:00:03]} 53. Qd1 {[%emt 0:00:24]} Qh3+ {[%emt 0:00:04]} 0-1

[Event "Chinese League Div-A Rapid 2022"]
[Site "Fuling,Chongqing"]
[Date "2022.09.15"]
[Round "8.20"]
[White "Guo, Qi"]
[Black "Yan, Tianqi"]
[Result "1-0"]
[ECO "D27"]
[WhiteElo "2406"]
[BlackElo "2188"]
[Annotator "ChessBase"]
[PlyCount "110"]
[EventDate "2022.09.07"]
[EventType "team-tourn"]
[EventCountry "CHN"]
[SourceTitle "playchess.com"]
[Source "ChessBase"]
[SourceQuality "1"]
[TimeControl "1500+10"]

1. d4 {[%emt 0:00:02]} Nf6 {[%emt 0:00:03]} 2. c4 {[%emt 0:00:02]} e6 {[%emt 0:00:04]} 3. Nf3 {[%emt 0:00:02]} d5 {[%emt 0:00:05]} 4. Nc3 {[%emt 0:00:01]} dxc4 {[%emt 0:00:05]} 5. e3 {[%emt 0:00:03]} a6 {[%emt 0:00:05]} 6. Bxc4 {[%emt 0:00:05]} b5 {[%emt 0:00:15]} 7. Bb3 {[%emt 0:00:02]} Bb7 {[%emt 0:01:08]} 8. O-O {[%emt 0:00:04]} c5 {[%emt 0:00:05]} 9. e4 {[%emt 0:00:03]} cxd4 {[%emt 0:01:43]} 10. Nxd4 {[%emt 0:00:02]} Nc6 {[%emt 0:00:38]} 11. Nxc6 {[%emt 0:00:19]} Qxd1 {[%emt 0:00:57]} 12. Rxd1 {[%emt 0:00:02]} Bxc6 {[%emt 0:00:06]} 13. f3 {[%emt 0:00:02]} Bc5+ {[%emt 0:00:55]} 14. Kf1 {[%emt 0:00:04]} Ke7 {[%emt 0:02:49]} 15. Ne2 {[%emt 0:00:17]} Rac8 {[%emt 0:02:09]} 16. Bf4 {[%emt 0:04:17]} Rhd8 {[%emt 0:02:49]} 17. g4 {[%emt 0:02:54]} Rxd1+ {[%emt 0:00:56]} 18. Rxd1 {[%emt 0:00:04]} a5 {[%emt 0:00:21]} 19. Rc1 {[%emt 0:01:07]} Nd7 {[%emt 0:01:24]} 20. h4 {[%emt 0:02:15]} a4 {[%emt 0:00:53]} 21. Bd1 {[%emt 0:00:03]} f6 {[%emt 0:05:56]} 22. a3 {[%emt 0:01:52]} e5 {[%emt 0:02:56]} 23. Bd2 {[%emt 0:00:05]} Bd6 {[%emt 0:00:03]} 24. Nc3 {[%emt 0:00:24]} Nc5 {[%emt 0:00:34]} 25. Be3 {[%emt 0:03:47]} Nd3 {[%emt 0:02:01]} 26. Rb1 {[%emt 0:00:03]} Bc5 {[%emt 0:00:06]} 27. Bxc5+ {[%emt 0:00:05]} Nxc5 {[%emt 0:00:02]} 28. Be2 {[%emt 0:00:02]} Nb3 {[%emt 0:00:03]} 29. Kf2 {[%emt 0:01:17]} Rb8 {[%emt 0:00:01]} 30. Na2 {[%emt 0:00:18]} Nd4 {[%emt 0:00:29]} 31. Nb4 {[%emt 0:00:05]} Be8 {[%emt 0:00:04]} 32. Rc1 {[%emt 0:00:19]} Kd6 {[%emt 0:00:06]} 33. Bd3 {[%emt 0:00:35]} Bd7 {[%emt 0:00:02]} 34. Ke3 {[%emt 0:00:05]} Rc8 {[%emt 0:00:06]} 35. Rg1 {[%emt 0:00:12]} h6 {[%emt 0:00:28]} 36. f4 {[%emt 0:01:32]} Ne6 {[%emt 0:00:09]} 37. f5 {[%emt 0:00:05]} Nd4 {[%emt 0:00:19]} 38. g5 {[%emt 0:00:39]} hxg5 {[%emt 0:00:13]} 39. hxg5 {[%emt 0:00:01]} Rh8 {[%emt 0:00:06]} 40. gxf6 {[%emt 0:00:02]} Rh3+ {[%emt 0:00:06]} 41. Kf2 {[%emt 0:00:33]} gxf6 {[%emt 0:00:01]} 42. Rg6 {[%emt 0:00:17]} Rh2+ {[%emt 0:00:31]} 43. Ke3 {[%emt 0:00:03]} Rxb2 {[%emt 0:00:04]} 44. Rxf6+ {[%emt 0:00:02]} Ke7 {[%emt 0:00:15]} 45. Nd5+ {[%emt 0:00:20]} Ke8 {[%emt 0:00:07]} 46. Rh6 {[%emt 0:01:04]} Bc6 {[%emt 0:00:01]} 47. Nf6+ {[%emt 0:00:02]} Kf8 {[%emt 0:00:26]} 48. Ng4 {[%emt 0:00:03]} Be8 {[%emt 0:00:13]} 49. Nxe5 {[%emt 0:00:11]} Nc2+ {[%emt 0:00:03]} 50. Bxc2 {[%emt 0:00:25]} Rxc2 {[%emt 0:00:01]} 51. f6 {[%emt 0:00:02]} Kg8 {[%emt 0:00:14]} 52. Kd4 {[%emt 0:00:33]} b4 {[%emt 0:00:02]} 53. axb4 {[%emt 0:00:05]} a3 {[%emt 0:00:01]} 54. Rh3 {[%emt 0:00:02]} a2 {[%emt 0:00:10]} 55. Ra3 {[%emt 0:00:02]} Bf7 {[%emt 0:00:51]} 1-0

[Event "Chinese League Div-A Rapid 2022"]
[Site "Fuling,Chongqing"]
[Date "2022.09.15"]
[Round "8.21"]
[White "Zeng, Chongsheng"]
[Black "Xu, Yinglun"]
[Result "1/2-1/2"]
[ECO "B96"]
[WhiteElo "2597"]
[BlackElo "2549"]
[Annotator "ChessBase"]
[PlyCount "57"]
[EventDate "2022.09.07"]
[EventType "team-tourn"]
[EventCountry "CHN"]
[SourceTitle "playchess.com"]
[Source "ChessBase"]
[SourceQuality "1"]
[TimeControl "1500+10"]

1. e4 {[%emt 0:00:03]} c5 {[%emt 0:00:07]} 2. Nf3 {[%emt 0:00:41]} d6 {[%emt 0:00:14]} 3. d4 {[%emt 0:00:15]} cxd4 {[%emt 0:00:07]} 4. Nxd4 {[%emt 0:00:02]} Nf6 {[%emt 0:00:03]} 5. Nc3 {[%emt 0:00:05]} a6 {[%emt 0:00:30]} 6. Bg5 {[%emt 0:00:10]} e6 {[%emt 0:01:09]} 7. f4 {[%emt 0:00:11]} Nbd7 {[%emt 0:01:25]} 8. Qf3 {[%emt 0:01:11]} Qc7 {[%emt 0:00:40]} 9. O-O-O {[%emt 0:00:17]} b5 {[%emt 0:02:06]} 10. e5 {[%emt 0:00:47]} Bb7 {[%emt 0:02:39]} 11. Qh3 {[%emt 0:00:19]} dxe5 {[%emt 0:01:25]} 12. Nxe6 {[%emt 0:00:04]} fxe6 {[%emt 0:00:06]} 13. Qxe6+ {[%emt 0:00:03]} Be7 {[%emt 0:00:05]} 14. Bxf6 {[%emt 0:00:10]} gxf6 {[%emt 0:01:19]} 15. Bxb5 {[%emt 0:00:31]} axb5 {[%emt 0:01:14]} 16. Nxb5 {[%emt 0:00:03]} Qc6 {[%emt 0:00:09]} 17. Nd6+ {[%emt 0:00:13]} Kd8 {[%emt 0:01:48]} 18. Nxb7+ {[%emt 0:00:06]} Qxb7 {[%emt 0:00:19]} 19. Rxd7+ {[%emt 0:00:05]} Qxd7 {[%emt 0:00:05]} 20. Rd1 {[%emt 0:00:02]} Qxd1+ {[%emt 0:00:27]} 21. Kxd1 {[%emt 0:00:02]} exf4 {[%emt 0:00:07]} 22. a4 {[%emt 0:01:26]} Re8 {[%emt 0:02:09]} 23. a5 {[%emt 0:01:38]} Kc7 {[%emt 0:02:19]} 24. Qb6+ {[%emt 0:02:17]} Kd7 {[%emt 0:00:12]} 25. Qb7+ {[%emt 0:00:24]} Ke6 {[%emt 0:00:49]} 26. Qe4+ {[%emt 0:00:17]} Kd7 {[%emt 0:00:12]} 27. Qb7+ {[%emt 0:00:46]} Ke6 {[%emt 0:00:17]} 28. Qe4+ {[%emt 0:00:06]} Kd7 {[%emt 0:00:06]} 29. Qa4+ {[%emt 0:00:04]} 1/2-1/2

[Event "Chinese League Div-A Rapid 2022"]
[Site "Fuling,Chongqing"]
[Date "2022.09.15"]
[Round "8.22"]
[White "Liu, Yan"]
[Black "Wen, Yang"]
[Result "1/2-1/2"]
[ECO "E05"]
[WhiteElo "2530"]
[BlackElo "2588"]
[Annotator "ChessBase"]
[PlyCount "54"]
[EventDate "2022.09.07"]
[EventType "team-tourn"]
[EventCountry "CHN"]
[SourceTitle "playchess.com"]
[Source "ChessBase"]
[SourceQuality "1"]
[TimeControl "1500+10"]

1. d4 {[%emt 0:00:03]} Nf6 {[%emt 0:00:11]} 2. c4 {[%emt 0:00:10]} e6 {[%emt 0:00:03]} 3. Nf3 {[%emt 0:00:10]} d5 {[%emt 0:00:08]} 4. g3 {[%emt 0:00:16]} Be7 {[%emt 0:00:18]} 5. Bg2 {[%emt 0:00:14]} O-O {[%emt 0:00:07]} 6. O-O {[%emt 0:00:29]} dxc4 {[%emt 0:00:12]} 7. Qc2 {[%emt 0:00:16]} a6 {[%emt 0:00:20]} 8. a4 {[%emt 0:00:27]} Bd7 {[%emt 0:00:09]} 9. Qxc4 {[%emt 0:00:22]} Bc6 {[%emt 0:00:10]} 10. Bg5 {[%emt 0:00:46]} Nbd7 {[%emt 0:01:13]} 11. Nc3 {[%emt 0:00:24]} h6 {[%emt 0:00:05]} 12. Bxf6 {[%emt 0:00:29]} Nxf6 {[%emt 0:00:05]} 13. b4 {[%emt 0:01:31]} Bd5 {[%emt 0:00:24]} 14. Nxd5 {[%emt 0:00:09]} exd5 {[%emt 0:00:04]} 15. Qb3 {[%emt 0:00:20]} c6 {[%emt 0:00:27]} 16. e3 {[%emt 0:01:42]} Bd6 {[%emt 0:02:00]} 17. b5 {[%emt 0:01:14]} axb5 {[%emt 0:03:08]} 18. axb5 {[%emt 0:00:05]} Rxa1 {[%emt 0:01:19]} 19. Rxa1 {[%emt 0:00:05]} Qb6 {[%emt 0:00:04]} 20. Rb1 {[%emt 0:00:40]} c5 {[%emt 0:00:09]} 21. dxc5 {[%emt 0:00:28]} Bxc5 {[%emt 0:00:05]} 22. Ra1 {[%emt 0:01:47]} Rd8 {[%emt 0:01:25]} 23. h3 {[%emt 0:01:06]} Ne4 {[%emt 0:01:52]} 24. Rd1 {[%emt 0:00:44]} Nf6 {[%emt 0:01:28]} 25. Ra1 {[%emt 0:00:24]} Ne4 {[%emt 0:03:15]} 26. Rd1 {[%emt 0:00:05]} Nf6 {[%emt 0:00:39]} 27. Ra1 {[%emt 0:00:22]} Ne4 {[%emt 0:00:17]} 1/2-1/2

[Event "Chinese League Div-A Rapid 2022"]
[Site "Fuling,Chongqing"]
[Date "2022.09.15"]
[Round "8.23"]
[White "Bu, Xiangzhi"]
[Black "Xue, Haowen"]
[Result "1/2-1/2"]
[ECO "A08"]
[WhiteElo "2709"]
[BlackElo "2128"]
[Annotator "ChessBase"]
[PlyCount "57"]
[EventDate "2022.09.07"]
[EventType "team-tourn"]
[EventCountry "CHN"]
[SourceTitle "playchess.com"]
[Source "ChessBase"]
[SourceQuality "1"]
[TimeControl "1500+10"]

1. Nf3 {[%emt 0:00:02]} d5 {[%emt 0:00:02]} 2. g3 {[%emt 0:00:01]} Nf6 {[%emt 0:00:03]} 3. Bg2 {[%emt 0:00:01]} c5 {[%emt 0:00:02]} 4. O-O {[%emt 0:00:02]} e6 {[%emt 0:00:04]} 5. d3 {[%emt 0:00:01]} Nc6 {[%emt 0:00:04]} 6. e4 {[%emt 0:00:01]} dxe4 {[%emt 0:00:29]} 7. dxe4 {[%emt 0:00:02]} Qxd1 {[%emt 0:00:17]} 8. Rxd1 {[%emt 0:00:01]} Nxe4 {[%emt 0:00:01]} 9. Na3 {[%emt 0:00:02]} Bd7 {[%emt 0:00:57]} 10. Nc4 {[%emt 0:01:33]} Rd8 {[%emt 0:01:33]} 11. Bf4 {[%emt 0:01:18]} f6 {[%emt 0:02:44]} 12. Re1 {[%emt 0:03:22]} b5 {[%emt 0:00:26]} 13. Na3 {[%emt 0:05:36]} Nd6 {[%emt 0:00:09]} 14. Bxd6 {[%emt 0:00:03]} Bxd6 {[%emt 0:00:01]} 15. Nxb5 {[%emt 0:00:01]} Bb8 {[%emt 0:01:25]} 16. Rad1 {[%emt 0:00:24]} Nb4 {[%emt 0:06:44]} 17. Na3 {[%emt 0:05:18]} Kf7 {[%emt 0:00:32]} 18. c3 {[%emt 0:00:02]} Nd5 {[%emt 0:00:06]} 19. Nd2 {[%emt 0:00:08]} Nb6 {[%emt 0:01:00]} 20. Ne4 {[%emt 0:00:23]} Rc8 {[%emt 0:01:32]} 21. Nc4 {[%emt 0:01:52]} Ke7 {[%emt 0:00:02]} 22. Ncd6 {[%emt 0:00:57]} Rc7 {[%emt 0:00:51]} 23. b4 {[%emt 0:00:06]} cxb4 {[%emt 0:00:26]} 24. cxb4 {[%emt 0:00:02]} Rc2 {[%emt 0:02:25]} 25. Bh3 {[%emt 0:02:23]} Rxa2 {[%emt 0:02:15]} 26. Nc5 {[%emt 0:00:52]} Bxd6 {[%emt 0:00:17]} 27. Bxe6 {[%emt 0:00:01]} Bxe6 {[%emt 0:00:06]} 28. Rxe6+ {[%emt 0:00:03]} Kf7 {[%emt 0:00:00]} 29. Rexd6 {[%emt 0:00:23]} 1/2-1/2